[Event "*** Titled Tuesday Blitz"]
[Site "Chess.com"]
[Date "2020.04.14"]
[Round "3"]
[White "Barbus89"]
[Black "ecwinslow"]
[Result "1-0"]
[WhiteElo "2325"]
[BlackElo "2106"]
[TimeControl "180+1"]
[EndTime "10:27:52 PDT"]
[Termination "Barbus89 won by resignation"]

1. d4 {[%clk 0:03:00.9]} 1... Nf6 {[%clk 0:02:55]} 2. Nf3 {[%clk 0:02:59.4]}
2... g6 {[%clk 0:02:52]} 3. g3 {[%clk 0:02:59.6]} 3... Bg7 {[%clk 0:02:47.5]} 4.
Bg2 {[%clk 0:03:00.5]} 4... O-O {[%clk 0:02:46.2]} 5. O-O {[%clk 0:03:01.4]}
5... d6 {[%clk 0:02:46.3]} 6. c4 {[%clk 0:02:59.3]} 6... Nbd7 {[%clk 0:02:40.2]}
7. Nc3 {[%clk 0:02:58.3]} 7... e5 {[%clk 0:02:40.1]} 8. b4 {[%clk 0:02:45.3]}
8... a5 {[%clk 0:02:37.1]} 9. b5 {[%clk 0:02:40.2]} 9... exd4 {[%clk 0:02:36.1]}
10. Nxd4 {[%clk 0:02:34.7]} 10... Nc5 {[%clk 0:02:35.4]} 11. h3 {[%clk
0:01:49.8]} 11... Re8 {[%clk 0:02:30.1]} 12. Be3 {[%clk 0:01:47.9]} 12... a4
{[%clk 0:02:24.1]} 13. Rc1 {[%clk 0:01:45.6]} 13... Nfd7 {[%clk 0:02:20.5]} 14.
Nd5 {[%clk 0:01:37.9]} 14... Ne5 {[%clk 0:02:03.4]} 15. Nf3 {[%clk 0:01:23.3]}
15... Nxf3+ {[%clk 0:01:50.5]} 16. exf3 {[%clk 0:01:23]} 16... Rb8 {[%clk
0:01:44.6]} 17. f4 {[%clk 0:01:16.6]} 17... Bd7 {[%clk 0:01:34.6]} 18. Bxc5
{[%clk 0:01:12.3]} 18... dxc5 {[%clk 0:01:33.6]} 19. Qxa4 {[%clk 0:01:13.2]}
19... Re2 {[%clk 0:01:17.5]} 20. Rfe1 {[%clk 0:00:59.6]} 20... Qe8 {[%clk
0:01:11.4]} 21. Qd1 {[%clk 0:00:53.1]} 21... Rxe1+ {[%clk 0:01:03.7]} 22. Qxe1
{[%clk 0:00:54]} 22... Qxe1+ {[%clk 0:00:55.4]} 23. Rxe1 {[%clk 0:00:54]} 23...
Ra8 {[%clk 0:00:45.1]} 24. Re2 {[%clk 0:00:42.2]} 24... Ra4 {[%clk 0:00:37.7]}
25. Nxc7 {[%clk 0:00:40.7]} 25... Rxc4 {[%clk 0:00:31.7]} 26. Bxb7 {[%clk
0:00:40.2]} 26... Bxh3 {[%clk 0:00:27.8]} 27. Re8+ {[%clk 0:00:25.8]} 27... Bf8
{[%clk 0:00:27.2]} 28. Bc6 {[%clk 0:00:23.1]} 28... Rb4 {[%clk 0:00:21.4]} 29.
Nd5 {[%clk 0:00:22.8]} 29... Rb2 {[%clk 0:00:19.3]} 30. b6 {[%clk 0:00:21.3]}
30... Be6 {[%clk 0:00:17.7]} 31. b7 {[%clk 0:00:20.4]} 31... Kg7 {[%clk
0:00:12.9]} 32. b8=Q {[%clk 0:00:20]} 1-0

[Event "*** Titled Tuesday Blitz"]
[Site "Chess.com"]
[Date "2020.04.14"]
[Round "3"]
[White "Szczor"]
[Black "kuli4ik"]
[Result "0-1"]
[WhiteElo "2577"]
[BlackElo "2786"]
[TimeControl "180+1"]
[EndTime "10:27:53 PDT"]
[Termination "kuli4ik won by resignation"]

1. e4 {[%clk 0:03:00.9]} 1... Nf6 {[%clk 0:02:53.2]} 2. e5 {[%clk 0:02:59.5]}
2... Nd5 {[%clk 0:02:53.3]} 3. d4 {[%clk 0:03:00.1]} 3... d6 {[%clk 0:02:53.3]}
4. c4 {[%clk 0:03:00.7]} 4... Nb6 {[%clk 0:02:53.4]} 5. exd6 {[%clk 0:03:01.2]}
5... exd6 {[%clk 0:02:52.5]} 6. Nc3 {[%clk 0:03:01.6]} 6... Be7 {[%clk
0:02:52.8]} 7. h3 {[%clk 0:03:01.5]} 7... O-O {[%clk 0:02:52.9]} 8. Nf3 {[%clk
0:03:02]} 8... Nc6 {[%clk 0:02:50.1]} 9. Be2 {[%clk 0:02:59.9]} 9... Bf6 {[%clk
0:02:49.1]} 10. O-O {[%clk 0:02:57.7]} 10... Re8 {[%clk 0:02:49.5]} 11. Be3
{[%clk 0:02:45.8]} 11... Bf5 {[%clk 0:02:43.3]} 12. b3 {[%clk 0:02:39.6]} 12...
a5 {[%clk 0:02:41.3]} 13. a4 {[%clk 0:02:30.9]} 13... Nb4 {[%clk 0:02:40.8]} 14.
Rc1 {[%clk 0:02:29.7]} 14... h6 {[%clk 0:02:36.1]} 15. Qd2 {[%clk 0:02:28.2]}
15... d5 {[%clk 0:02:28.2]} 16. Rfe1 {[%clk 0:02:09.4]} 16... c6 {[%clk
0:02:25.9]} 17. Bf1 {[%clk 0:02:01.1]} 17... Qd7 {[%clk 0:02:18.3]} 18. c5
{[%clk 0:01:58]} 18... Nc8 {[%clk 0:02:17.1]} 19. Bf4 {[%clk 0:01:54.3]} 19...
Ne7 {[%clk 0:02:14.2]} 20. Be5 {[%clk 0:01:50]} 20... Bxe5 {[%clk 0:02:10.3]}
21. Nxe5 {[%clk 0:01:50.9]} 21... Qc7 {[%clk 0:02:07.8]} 22. Qf4 {[%clk
0:01:31.1]} 22... f6 {[%clk 0:01:56.6]} 23. Ng6 {[%clk 0:01:19.2]} 23... Qxf4
{[%clk 0:01:55.7]} 24. Nxf4 {[%clk 0:01:20.1]} 24... g5 {[%clk 0:01:55.4]} 25.
Nh5 {[%clk 0:01:10.9]} 25... Kf7 {[%clk 0:01:55.4]} 26. g4 {[%clk 0:01:08]}
26... Bg6 {[%clk 0:01:48.2]} 27. Ng3 {[%clk 0:01:06.9]} 27... f5 {[%clk
0:01:48.6]} 28. gxf5 {[%clk 0:00:46.7]} 28... Nxf5 {[%clk 0:01:48.3]} 29. Nxf5
{[%clk 0:00:44.9]} 29... Bxf5 {[%clk 0:01:49.2]} 30. Be2 {[%clk 0:00:38.6]}
30... Bg6 {[%clk 0:01:38]} 31. Kg2 {[%clk 0:00:38.3]} 31... Re7 {[%clk
0:01:37.6]} 32. Bg4 {[%clk 0:00:34.9]} 32... Rae8 {[%clk 0:01:36.8]} 33. Rxe7+
{[%clk 0:00:35]} 33... Rxe7 {[%clk 0:01:37.7]} 34. Nd1 {[%clk 0:00:28.7]} 34...
h5 {[%clk 0:01:36.4]} 35. Bf3 {[%clk 0:00:27.1]} 35... Nd3 {[%clk 0:01:35.3]}
36. Rc3 {[%clk 0:00:24.6]} 36... Re1 {[%clk 0:01:29.8]} 37. Ne3 {[%clk
0:00:23.7]} 37... Nf4+ {[%clk 0:01:29.7]} 38. Kh2 {[%clk 0:00:23.6]} 38... Rb1
{[%clk 0:01:23.1]} 39. Ng2 {[%clk 0:00:23]} 39... Ne6 {[%clk 0:01:13.4]} 40. Be2
{[%clk 0:00:05.7]} 40... Nxd4 {[%clk 0:01:11.9]} 41. Bd3 {[%clk 0:00:06.1]}
41... Rxb3 {[%clk 0:01:03.9]} 42. Bxg6+ {[%clk 0:00:05.6]} 42... Kxg6 {[%clk
0:01:04.2]} 43. Rc1 {[%clk 0:00:05.4]} 43... Rb2 {[%clk 0:01:00.2]} 44. Kg3
{[%clk 0:00:05.1]} 44... Ne2+ {[%clk 0:01:00]} 0-1

[Event "*** Titled Tuesday Blitz"]
[Site "Chess.com"]
[Date "2020.04.14"]
[Round "3"]
[White "Sanyura"]
[Black "AliKa2810"]
[Result "0-1"]
[WhiteElo "2395"]
[BlackElo "2622"]
[TimeControl "180+1"]
[EndTime "10:27:53 PDT"]
[Termination "AliKa2810 won by resignation"]

1. e4 {[%clk 0:03:00.9]} 1... e6 {[%clk 0:02:59.6]} 2. d4 {[%clk 0:02:59.8]}
2... d5 {[%clk 0:03:00.5]} 3. Nc3 {[%clk 0:02:59.7]} 3... Nf6 {[%clk 0:02:59.9]}
4. Bg5 {[%clk 0:02:57.1]} 4... dxe4 {[%clk 0:03:00.2]} 5. Nxe4 {[%clk
0:02:56.8]} 5... Be7 {[%clk 0:03:00.8]} 6. Bxf6 {[%clk 0:02:45.9]} 6... gxf6
{[%clk 0:03:00.5]} 7. Nf3 {[%clk 0:02:39.6]} 7... f5 {[%clk 0:03:00.6]} 8. Nc3
{[%clk 0:02:39.5]} 8... a6 {[%clk 0:03:00.4]} 9. g3 {[%clk 0:02:38.4]} 9... b5
{[%clk 0:02:59.7]} 10. Bg2 {[%clk 0:02:38.4]} 10... Bb7 {[%clk 0:03:00.3]} 11.
a4 {[%clk 0:02:35.9]} 11... b4 {[%clk 0:02:54]} 12. Nb1 {[%clk 0:02:36]} 12...
c5 {[%clk 0:02:51.1]} 13. O-O {[%clk 0:02:34]} 13... Nd7 {[%clk 0:02:35.9]} 14.
Nbd2 {[%clk 0:02:18.4]} 14... O-O {[%clk 0:02:29.4]} 15. c3 {[%clk 0:02:09.3]}
15... bxc3 {[%clk 0:02:22.8]} 16. bxc3 {[%clk 0:02:09]} 16... cxd4 {[%clk
0:02:22.9]} 17. cxd4 {[%clk 0:02:09.9]} 17... Nf6 {[%clk 0:02:15.6]} 18. Nc4
{[%clk 0:02:03.5]} 18... Ne4 {[%clk 0:01:55.9]} 19. Nfe5 {[%clk 0:01:25]} 19...
Bf6 {[%clk 0:01:51.5]} 20. Qd3 {[%clk 0:01:00.3]} 20... Qe7 {[%clk 0:01:35.5]}
21. Rab1 {[%clk 0:00:55]} 21... Rfd8 {[%clk 0:01:29.9]} 22. Qe3 {[%clk
0:00:34.9]} 22... Bg5 {[%clk 0:01:03.2]} 23. Qb3 {[%clk 0:00:07.2]} 23... Bd5
{[%clk 0:01:00.3]} 24. Qd3 {[%clk 0:00:06.2]} 24... Rab8 {[%clk 0:00:47.3]} 25.
Rxb8 {[%clk 0:00:05]} 25... Rxb8 {[%clk 0:00:46.9]} 26. h4 {[%clk 0:00:05.2]}
26... Bf6 {[%clk 0:00:45.7]} 27. h5 {[%clk 0:00:05.4]} 27... h6 {[%clk
0:00:43.6]} 28. Qe3 {[%clk 0:00:05.4]} 28... Kg7 {[%clk 0:00:42.7]} 29. Rc1
{[%clk 0:00:05.2]} 29... Bg5 {[%clk 0:00:40]} 30. Qe2 {[%clk 0:00:04.7]} 30...
Bxc1 {[%clk 0:00:39.3]} 31. f4 {[%clk 0:00:05.6]} 31... Nxg3 {[%clk 0:00:34.2]}
32. Qf2 {[%clk 0:00:05.4]} 32... Ne4 {[%clk 0:00:33.2]} 33. Qe1 {[%clk
0:00:05.3]} 33... Bxf4 {[%clk 0:00:31.9]} 0-1

[Event "*** Titled Tuesday Blitz"]
[Site "Chess.com"]
[Date "2020.04.14"]
[Round "3"]
[White "RestartingChess"]
[Black "Vuk2000"]
[Result "0-1"]
[WhiteElo "2392"]
[BlackElo "2621"]
[TimeControl "180+1"]
[EndTime "10:27:53 PDT"]
[Termination "Vuk2000 won by resignation"]

1. e4 {[%clk 0:03:00.9]} 1... e6 {[%clk 0:02:59.4]} 2. d4 {[%clk 0:03:00.9]}
2... d5 {[%clk 0:02:59.2]} 3. exd5 {[%clk 0:03:01.8]} 3... exd5 {[%clk
0:02:59.3]} 4. c4 {[%clk 0:03:02.7]} 4... Nf6 {[%clk 0:02:58.2]} 5. Nc3 {[%clk
0:03:03.6]} 5... Bd6 {[%clk 0:02:53]} 6. Bd3 {[%clk 0:03:03.8]} 6... O-O {[%clk
0:02:52.6]} 7. Nge2 {[%clk 0:03:02.9]} 7... dxc4 {[%clk 0:02:48]} 8. Bxc4 {[%clk
0:03:03]} 8... Bf5 {[%clk 0:02:40.8]} 9. O-O {[%clk 0:03:02.7]} 9... Nbd7 {[%clk
0:02:40.9]} 10. h3 {[%clk 0:03:00.9]} 10... Nb6 {[%clk 0:02:40.2]} 11. Bb3
{[%clk 0:03:00.3]} 11... h6 {[%clk 0:02:36.3]} 12. Bf4 {[%clk 0:02:49.4]} 12...
c6 {[%clk 0:02:25.3]} 13. d5 {[%clk 0:02:33.8]} 13... Bxf4 {[%clk 0:02:05.8]}
14. Nxf4 {[%clk 0:02:33.2]} 14... Qd6 {[%clk 0:01:21.8]} 15. Qf3 {[%clk
0:02:31.4]} 15... c5 {[%clk 0:01:22.1]} 16. Na4 {[%clk 0:01:12.1]} 16... Be4
{[%clk 0:01:07.3]} 17. Qe3 {[%clk 0:01:05.7]} 17... Rfe8 {[%clk 0:00:58.1]} 18.
Nxb6 {[%clk 0:01:04.2]} 18... axb6 {[%clk 0:00:40.5]} 19. Qd2 {[%clk 0:00:56.1]}
19... b5 {[%clk 0:00:39.1]} 20. a3 {[%clk 0:00:33.1]} 20... c4 {[%clk
0:00:38.6]} 21. Ba2 {[%clk 0:00:33.5]} 21... Rad8 {[%clk 0:00:36.1]} 22. Rad1
{[%clk 0:00:31.3]} 22... g5 {[%clk 0:00:34.4]} 23. Ne2 {[%clk 0:00:27.5]} 23...
Bd3 {[%clk 0:00:34.7]} 24. Rfe1 {[%clk 0:00:26.1]} 24... Nxd5 {[%clk 0:00:35.1]}
25. Ng3 {[%clk 0:00:26.4]} 25... Nf4 {[%clk 0:00:33.2]} 26. Bb1 {[%clk
0:00:24.5]} 26... Qc6 {[%clk 0:00:30.7]} 27. f3 {[%clk 0:00:18.1]} 27... Bxb1
{[%clk 0:00:23.2]} 28. Qxd8 {[%clk 0:00:18]} 28... Rxd8 {[%clk 0:00:23.5]} 29.
Rxd8+ {[%clk 0:00:18.9]} 29... Kg7 {[%clk 0:00:23.4]} 30. Rxb1 {[%clk
0:00:19.4]} 30... Qb6+ {[%clk 0:00:23.6]} 31. Kh2 {[%clk 0:00:18.3]} 31... Qxd8
{[%clk 0:00:23.6]} 32. Re1 {[%clk 0:00:19.2]} 32... Qc7 {[%clk 0:00:23.3]} 33.
Re7 {[%clk 0:00:19.2]} 33... Qxe7 {[%clk 0:00:21.4]} 34. Nf5+ {[%clk 0:00:19.2]}
34... Kf6 {[%clk 0:00:22]} 35. Nxe7 {[%clk 0:00:19.4]} 35... Kxe7 {[%clk
0:00:22.9]} 36. Kg3 {[%clk 0:00:20.2]} 36... Nd3 {[%clk 0:00:22.8]} 37. h4
{[%clk 0:00:21]} 37... Nxb2 {[%clk 0:00:22.9]} 38. Kg4 {[%clk 0:00:21.9]} 38...
c3 {[%clk 0:00:22.7]} 39. Kh5 {[%clk 0:00:22.8]} 39... c2 {[%clk 0:00:22.7]} 40.
Kxh6 {[%clk 0:00:23.7]} 0-1

[Event "*** Titled Tuesday Blitz"]
[Site "Chess.com"]
[Date "2020.04.14"]
[Round "3"]
[White "vovkcoach"]
[Black "PchelkinVK"]
[Result "1-0"]
[WhiteElo "2759"]
[BlackElo "2455"]
[TimeControl "180+1"]
[EndTime "10:27:54 PDT"]
[Termination "vovkcoach won on time"]

1. e4 {[%clk 0:03:00]} 1... e6 {[%clk 0:02:51.4]} 2. d4 {[%clk 0:02:59.5]} 2...
d5 {[%clk 0:02:51.8]} 3. Nc3 {[%clk 0:02:59]} 3... Nf6 {[%clk 0:02:50.9]} 4. e5
{[%clk 0:02:59.1]} 4... Nfd7 {[%clk 0:02:50.5]} 5. f4 {[%clk 0:02:57.8]} 5... c5
{[%clk 0:02:50.7]} 6. Nce2 {[%clk 0:02:58.1]} 6... Nc6 {[%clk 0:02:50.5]} 7. c3
{[%clk 0:02:56.8]} 7... cxd4 {[%clk 0:02:49.9]} 8. cxd4 {[%clk 0:02:56.7]} 8...
Bb4+ {[%clk 0:02:50]} 9. Bd2 {[%clk 0:02:56.6]} 9... Qb6 {[%clk 0:02:47.6]} 10.
Nf3 {[%clk 0:02:56.7]} 10... f6 {[%clk 0:02:43.1]} 11. a3 {[%clk 0:02:54.2]}
11... Bxd2+ {[%clk 0:02:41.9]} 12. Qxd2 {[%clk 0:02:55]} 12... O-O {[%clk
0:02:41.2]} 13. b4 {[%clk 0:02:07]} 13... a5 {[%clk 0:02:26.9]} 14. b5 {[%clk
0:02:06.8]} 14... Qxb5 {[%clk 0:02:12.4]} 15. Nc3 {[%clk 0:02:06.5]} 15... Qb6
{[%clk 0:02:00.5]} 16. Rb1 {[%clk 0:02:06.1]} 16... Qd8 {[%clk 0:01:57.2]} 17.
Bd3 {[%clk 0:02:06.3]} 17... Qe7 {[%clk 0:01:48.9]} 18. O-O {[%clk 0:02:05]}
18... Qxa3 {[%clk 0:01:24.9]} 19. f5 {[%clk 0:01:59.7]} 19... Ndb8 {[%clk
0:00:42.4]} 20. fxe6 {[%clk 0:01:55.9]} 20... Bxe6 {[%clk 0:00:38.6]} 21. exf6
{[%clk 0:01:53.8]} 21... Rxf6 {[%clk 0:00:36.6]} 22. Ng5 {[%clk 0:01:52.5]}
22... Qd6 {[%clk 0:00:12.4]} 23. Bxh7+ {[%clk 0:01:37.3]} 23... Kh8 {[%clk
0:00:12.4]} 24. Qc2 {[%clk 0:01:21]} 24... Nd7 {[%clk 0:00:08.6]} 25. Rbe1
{[%clk 0:00:53.6]} 25... Nxd4 {[%clk 0:00:07.2]} 26. Qd1 {[%clk 0:00:53.4]}
26... Rh6 {[%clk 0:00:04.4]} 27. g3 {[%clk 0:00:53.2]} 27... Qc5 {[%clk
0:00:01.5]} 28. Re3 {[%clk 0:00:36.7]} 1-0

[Event "*** Titled Tuesday Blitz"]
[Site "Chess.com"]
[Date "2020.04.14"]
[Round "3"]
[White "GrafLermontov"]
[Black "YaWaleriy"]
[Result "0-1"]
[WhiteElo "2396"]
[BlackElo "2207"]
[TimeControl "180+1"]
[EndTime "10:27:57 PDT"]
[Termination "YaWaleriy won on time"]

1. d4 {[%clk 0:03:00.9]} 1... d5 {[%clk 0:02:59.3]} 2. c4 {[%clk 0:03:00.8]}
2... e6 {[%clk 0:02:59.3]} 3. Nc3 {[%clk 0:03:00.8]} 3... Be7 {[%clk 0:02:59.4]}
4. Nf3 {[%clk 0:02:59.5]} 4... Nf6 {[%clk 0:02:59.3]} 5. cxd5 {[%clk 0:02:59.9]}
5... exd5 {[%clk 0:02:58.5]} 6. Bg5 {[%clk 0:03:00.3]} 6... c6 {[%clk
0:02:58.4]} 7. Qc2 {[%clk 0:03:00.3]} 7... Nbd7 {[%clk 0:02:55.9]} 8. e3 {[%clk
0:03:00.6]} 8... O-O {[%clk 0:02:55.3]} 9. Bd3 {[%clk 0:03:01]} 9... Re8 {[%clk
0:02:55.5]} 10. O-O {[%clk 0:02:58.2]} 10... Nf8 {[%clk 0:02:55.3]} 11. Rab1
{[%clk 0:02:58.8]} 11... a5 {[%clk 0:02:53.2]} 12. a3 {[%clk 0:02:58.7]} 12...
Ng6 {[%clk 0:02:52.4]} 13. b4 {[%clk 0:02:58.4]} 13... axb4 {[%clk 0:02:52.5]}
14. axb4 {[%clk 0:02:59.3]} 14... Ne4 {[%clk 0:02:52.3]} 15. Bxe7 {[%clk
0:02:55.7]} 15... Qxe7 {[%clk 0:02:51.2]} 16. Bxe4 {[%clk 0:02:54.8]} 16... dxe4
{[%clk 0:02:49.9]} 17. Nd2 {[%clk 0:02:55.4]} 17... f5 {[%clk 0:02:50.2]} 18. b5
{[%clk 0:02:46.1]} 18... Be6 {[%clk 0:02:41.8]} 19. bxc6 {[%clk 0:02:45.2]}
19... bxc6 {[%clk 0:02:41.6]} 20. Na4 {[%clk 0:02:41.6]} 20... Qg5 {[%clk
0:02:32.4]} 21. Qxc6 {[%clk 0:02:12.5]} 21... Rac8 {[%clk 0:02:21.9]} 22. Qd6
{[%clk 0:02:08.8]} 22... Rc2 {[%clk 0:02:16.7]} 23. Rbd1 {[%clk 0:01:36.4]}
23... Rxd2 {[%clk 0:01:54]} 24. Rxd2 {[%clk 0:01:34.3]} 24... f4 {[%clk
0:01:54.2]} 25. Qc5 {[%clk 0:01:01.5]} 25... Bf5 {[%clk 0:01:42]} 26. Kh1 {[%clk
0:00:28.4]} 26... Nh4 {[%clk 0:01:34.6]} 27. Rg1 {[%clk 0:00:20]} 27... fxe3
{[%clk 0:01:33.8]} 28. fxe3 {[%clk 0:00:20.3]} 28... Qxe3 {[%clk 0:01:33.5]} 29.
Qc4+ {[%clk 0:00:19.3]} 29... Kh8 {[%clk 0:01:32.8]} 30. Qe2 {[%clk 0:00:17.9]}
30... Qg5 {[%clk 0:01:26]} 31. d5 {[%clk 0:00:15]} 31... e3 {[%clk 0:01:24.3]}
32. Rd4 {[%clk 0:00:14.9]} 32... Qf6 {[%clk 0:01:14.6]} 33. Rgd1 {[%clk
0:00:14.8]} 33... Ng6 {[%clk 0:01:10.6]} 34. d6 {[%clk 0:00:14.4]} 34... Rd8
{[%clk 0:01:07.5]} 35. Nc5 {[%clk 0:00:13.4]} 35... Qe5 {[%clk 0:01:06.7]} 36.
Nb7 {[%clk 0:00:08.5]} 36... Rd7 {[%clk 0:01:05.3]} 37. Rb4 {[%clk 0:00:08.5]}
37... Nf4 {[%clk 0:00:59.1]} 38. Qb5 {[%clk 0:00:07.8]} 38... e2 {[%clk
0:00:57.3]} 39. Re1 {[%clk 0:00:06.1]} 39... Qc3 {[%clk 0:00:53.3]} 40. Rxe2
{[%clk 0:00:02.2]} 40... Qc1+ {[%clk 0:00:52.5]} 0-1

[Event "*** Titled Tuesday Blitz"]
[Site "Chess.com"]
[Date "2020.04.14"]
[Round "3"]
[White "K1TTYGANG"]
[Black "Manukyan_Artak"]
[Result "0-1"]
[WhiteElo "2106"]
[BlackElo "2330"]
[TimeControl "180+1"]
[EndTime "10:27:58 PDT"]
[Termination "Manukyan_Artak won by resignation"]

1. c4 {[%clk 0:03:00.9]} 1... Nf6 {[%clk 0:02:59.1]} 2. Nc3 {[%clk 0:03:00.6]}
2... g6 {[%clk 0:02:58.8]} 3. g3 {[%clk 0:03:01]} 3... Bg7 {[%clk 0:02:59.3]} 4.
Bg2 {[%clk 0:03:01.4]} 4... O-O {[%clk 0:03:00.2]} 5. e4 {[%clk 0:02:59.8]} 5...
e5 {[%clk 0:02:59.1]} 6. Nge2 {[%clk 0:02:59.1]} 6... c5 {[%clk 0:02:58.7]} 7.
d3 {[%clk 0:02:59.4]} 7... Nc6 {[%clk 0:02:58.4]} 8. O-O {[%clk 0:02:59.8]} 8...
d6 {[%clk 0:02:56.8]} 9. h3 {[%clk 0:03:00.1]} 9... Nd4 {[%clk 0:02:56]} 10. Rb1
{[%clk 0:02:59.4]} 10... h5 {[%clk 0:02:50.8]} 11. Kh2 {[%clk 0:02:59.1]} 11...
Kh7 {[%clk 0:02:46.7]} 12. Nxd4 {[%clk 0:02:54]} 12... cxd4 {[%clk 0:02:46.3]}
13. Ne2 {[%clk 0:02:54.4]} 13... Rb8 {[%clk 0:02:41.8]} 14. b4 {[%clk
0:02:54.6]} 14... a5 {[%clk 0:02:40.6]} 15. b5 {[%clk 0:02:54.2]} 15... h4
{[%clk 0:02:30.5]} 16. f4 {[%clk 0:02:52.7]} 16... hxg3+ {[%clk 0:02:29.8]} 17.
Nxg3 {[%clk 0:02:53.2]} 17... Nd7 {[%clk 0:01:58.7]} 18. f5 {[%clk 0:02:47.6]}
18... Nc5 {[%clk 0:01:58.5]} 19. Ba3 {[%clk 0:02:36.3]} 19... Qh4 {[%clk
0:01:51.2]} 20. b6 {[%clk 0:01:43.6]} 20... Bd7 {[%clk 0:01:48.5]} 21. Bc1
{[%clk 0:01:41.1]} 21... Bh6 {[%clk 0:01:37.6]} 22. Bxh6 {[%clk 0:01:40.1]}
22... Qxh6 {[%clk 0:01:37.7]} 23. Rf3 {[%clk 0:01:34.8]} 23... Kg8 {[%clk
0:01:28.2]} 24. Qe1 {[%clk 0:01:31.8]} 24... Ra8 {[%clk 0:01:24.5]} 25. Bf1
{[%clk 0:01:26.1]} 25... Ra6 {[%clk 0:01:14.5]} 26. Qf2 {[%clk 0:01:22]} 26...
Na4 {[%clk 0:01:07.8]} 27. fxg6 {[%clk 0:01:19.2]} 27... fxg6 {[%clk 0:01:07.3]}
28. Rxf8+ {[%clk 0:01:01.3]} 28... Qxf8 {[%clk 0:01:08.2]} 29. Qd2 {[%clk
0:00:57]} 29... Nc3 {[%clk 0:00:46.2]} 30. Rb2 {[%clk 0:00:55.2]} 30... a4
{[%clk 0:00:37.3]} 31. a3 {[%clk 0:00:53.7]} 31... Ra8 {[%clk 0:00:32.3]} 32.
Qe2 {[%clk 0:00:40.5]} 32... Qf4 {[%clk 0:00:30.6]} 33. Qe1 {[%clk 0:00:33.9]}
33... Rf8 {[%clk 0:00:29.2]} 34. Bg2 {[%clk 0:00:34.2]} 34... Qe3 {[%clk
0:00:23]} 35. Qxe3 {[%clk 0:00:31.6]} 35... dxe3 {[%clk 0:00:23.9]} 36. Ne2
{[%clk 0:00:29.7]} 36... Rf2 {[%clk 0:00:21]} 37. Nxc3 {[%clk 0:00:28]} 37...
Rxb2 {[%clk 0:00:21.1]} 38. Nd5 {[%clk 0:00:28.4]} 38... e2 {[%clk 0:00:18.3]}
0-1

[Event "*** Titled Tuesday Blitz"]
[Site "Chess.com"]
[Date "2020.04.14"]
[Round "3"]
[White "joksijoksi"]
[Black "GM-2023"]
[Result "1-0"]
[WhiteElo "2312"]
[BlackElo "2078"]
[TimeControl "180+1"]
[EndTime "10:27:58 PDT"]
[Termination "joksijoksi won on time"]

1. e4 {[%clk 0:03:00.9]} 1... e5 {[%clk 0:02:59.8]} 2. Nf3 {[%clk 0:02:59.8]}
2... Nc6 {[%clk 0:02:59.6]} 3. Nc3 {[%clk 0:02:59.6]} 3... Nf6 {[%clk
0:02:59.3]} 4. Bb5 {[%clk 0:02:51.3]} 4... Bd6 {[%clk 0:02:55.7]} 5. a3 {[%clk
0:02:44.9]} 5... O-O {[%clk 0:02:55]} 6. d3 {[%clk 0:02:39.4]} 6... Ne7 {[%clk
0:02:50.2]} 7. g4 {[%clk 0:02:29]} 7... Nxg4 {[%clk 0:02:44.4]} 8. Rg1 {[%clk
0:02:28.2]} 8... Nf6 {[%clk 0:02:40]} 9. Bg5 {[%clk 0:02:12.7]} 9... Ng6 {[%clk
0:02:30.2]} 10. Nd5 {[%clk 0:02:12]} 10... Be7 {[%clk 0:02:20.9]} 11. Nxe7+
{[%clk 0:02:00.2]} 11... Qxe7 {[%clk 0:02:20.9]} 12. h4 {[%clk 0:01:57.1]} 12...
c6 {[%clk 0:01:34.4]} 13. Bc4 {[%clk 0:01:51.5]} 13... d5 {[%clk 0:01:23.9]} 14.
exd5 {[%clk 0:01:35.7]} 14... e4 {[%clk 0:01:23.4]} 15. Qe2 {[%clk 0:01:26.5]}
15... exf3 {[%clk 0:01:11.1]} 16. Qxe7 {[%clk 0:01:24.5]} 16... Nxe7 {[%clk
0:01:11.1]} 17. Bxf6 {[%clk 0:01:24.2]} 17... Ng6 {[%clk 0:00:56.3]} 18. Bc3
{[%clk 0:01:23.7]} 18... Re8+ {[%clk 0:00:54.9]} 19. Kd1 {[%clk 0:01:22.1]}
19... Re2 {[%clk 0:00:26.5]} 20. h5 {[%clk 0:01:19.1]} 20... Ne5 {[%clk
0:00:25.6]} 21. dxc6 {[%clk 0:01:13]} 21... Nxc4 {[%clk 0:00:09.3]} 22. dxc4
{[%clk 0:00:58]} 22... Bf5 {[%clk 0:00:08.4]} 23. c7 {[%clk 0:00:45.3]} 23...
Rc8 {[%clk 0:00:04.8]} 24. Bxg7 {[%clk 0:00:41.3]} 24... Bxc2+ {[%clk
0:00:02.1]} 25. Kc1 {[%clk 0:00:40.8]} 25... Bd3 {[%clk 0:00:03]} 26. a4 {[%clk
0:00:25.9]} 26... f6 {[%clk 0:00:01.4]} 27. Bxf6+ {[%clk 0:00:24.5]} 27... Kf7
{[%clk 0:00:01.7]} 28. Bd8 {[%clk 0:00:25.4]} 1-0

[Event "*** Titled Tuesday Blitz"]
[Site "Chess.com"]
[Date "2020.04.14"]
[Round "3"]
[White "GMMatamoros"]
[Black "eljanov"]
[Result "1-0"]
[WhiteElo "2511"]
[BlackElo "2815"]
[TimeControl "180+1"]
[EndTime "10:27:59 PDT"]
[Termination "GMMatamoros won on time"]

1. Nf3 {[%clk 0:03:00.9]} 1... d5 {[%clk 0:02:57.5]} 2. g3 {[%clk 0:02:59.9]}
2... c6 {[%clk 0:02:56.2]} 3. Bg2 {[%clk 0:02:54.2]} 3... Bg4 {[%clk 0:02:55.9]}
4. d4 {[%clk 0:02:53.7]} 4... e6 {[%clk 0:02:54.7]} 5. c4 {[%clk 0:02:53.6]}
5... Nd7 {[%clk 0:02:51.8]} 6. O-O {[%clk 0:02:47.4]} 6... Be7 {[%clk
0:02:46.2]} 7. h3 {[%clk 0:02:41.6]} 7... Bf5 {[%clk 0:02:40.8]} 8. Nc3 {[%clk
0:02:39.3]} 8... h6 {[%clk 0:02:28.6]} 9. Nd2 {[%clk 0:02:31.2]} 9... Ngf6
{[%clk 0:02:27.3]} 10. e4 {[%clk 0:02:30.5]} 10... dxe4 {[%clk 0:02:27.5]} 11.
Ndxe4 {[%clk 0:02:31.4]} 11... Nxe4 {[%clk 0:02:26.6]} 12. Nxe4 {[%clk
0:02:32.3]} 12... O-O {[%clk 0:02:21]} 13. Re1 {[%clk 0:02:26.1]} 13... Nf6
{[%clk 0:02:05.6]} 14. Nc3 {[%clk 0:02:25.5]} 14... Bd6 {[%clk 0:01:53.4]} 15.
Be3 {[%clk 0:01:54.5]} 15... a6 {[%clk 0:01:47.9]} 16. Qb3 {[%clk 0:01:51.9]}
16... Rb8 {[%clk 0:01:35.5]} 17. Rad1 {[%clk 0:01:46.4]} 17... Qc7 {[%clk
0:01:30.3]} 18. c5 {[%clk 0:01:45]} 18... Bxg3 {[%clk 0:01:17.1]} 19. fxg3
{[%clk 0:01:44.6]} 19... Qxg3 {[%clk 0:01:17.6]} 20. Ne2 {[%clk 0:01:26.8]}
20... Qh4 {[%clk 0:01:02.6]} 21. Bf4 {[%clk 0:01:16.4]} 21... Rbd8 {[%clk
0:00:56.3]} 22. Qg3 {[%clk 0:01:11.3]} 22... Qh5 {[%clk 0:00:54.1]} 23. Bd6
{[%clk 0:01:08.9]} 23... Rfe8 {[%clk 0:00:48.8]} 24. Nf4 {[%clk 0:01:07.5]}
24... Qg5 {[%clk 0:00:49.2]} 25. Qxg5 {[%clk 0:00:57.2]} 25... hxg5 {[%clk
0:00:49.5]} 26. Nd3 {[%clk 0:00:57.8]} 26... Nd5 {[%clk 0:00:41.3]} 27. Kh2
{[%clk 0:00:40.2]} 27... f6 {[%clk 0:00:40.4]} 28. Kg3 {[%clk 0:00:38.9]} 28...
Kf7 {[%clk 0:00:39.1]} 29. Rh1 {[%clk 0:00:36]} 29... Ne7 {[%clk 0:00:31.7]} 30.
Nf2 {[%clk 0:00:31.3]} 30... Bg6 {[%clk 0:00:24]} 31. Ne4 {[%clk 0:00:31.2]}
31... Nf5+ {[%clk 0:00:18.4]} 32. Kf2 {[%clk 0:00:31]} 32... Nh4 {[%clk
0:00:18.4]} 33. Bc7 {[%clk 0:00:31.1]} 33... Nxg2 {[%clk 0:00:11.9]} 34. Nd6+
{[%clk 0:00:31.1]} 34... Rxd6 {[%clk 0:00:11.6]} 35. cxd6 {[%clk 0:00:32]} 1-0